{"text_format":"1","workbook":"xlsx","n_sheets":1,"sheets":["Group 15 Landscape Architect"],"not_rendered":{"charts":0,"images":0,"macros":1,"external_links":0,"defined_names":1,"comments":0,"pivot_tables":0},"unopened":[],"bounds":{"document_bytes":16777216,"sheet_cells":100000,"rows_first":2000,"rows_last":500,"rows_between":2000,"halvings":0,"cell_chars":16384,"cell_head_chars":4096},"cells_cut":0,"cells_raw":0,"read":"whole","date_system":"1900"}

{"sheet":"Group 15 Landscape Architect","index":0,"n_rows":95,"n_cols":18,"rows_kept":95,"cut":false,"hidden":false,"merged":[[1,10,1,12],[2,5,2,6],[3,1,3,3],[3,4,3,7],[3,10,3,12],[4,1,4,3],[4,4,4,8],[4,10,4,12],[5,4,5,8],[5,10,5,12],[6,4,6,8],[6,10,6,12],[7,4,7,8],[7,10,7,12],[8,4,8,8],[8,10,8,12],[9,4,9,8],[9,10,9,12],[10,4,10,8],[10,10,10,12],[11,4,11,8],[11,10,11,12],[19,1,20,12],[21,1,21,12],[22,1,22,12],[24,1,24,12],[26,1,26,12],[27,5,27,12],[28,5,28,12],[29,5,29,12],[30,5,30,12],[31,5,31,12],[33,1,33,12],[35,1,37,4],[35,5,37,11],[35,12,37,12],[39,1,39,6],[39,10,39,12],[60,2,60,11],[61,3,61,11],[53,1,56,12],[58,2,58,10],[40,1,40,6],[43,1,43,12],[44,2,47,11],[44,12,45,12],[51,2,51,12],[62,1,62,2],[62,3,62,11],[62,12,63,12],[64,3,64,11],[65,1,65,2],[65,3,65,11],[65,12,66,12],[67,3,67,11],[68,3,68,11],[70,3,70,11],[71,1,71,2],[71,3,71,11],[71,12,72,12],[73,3,73,11],[74,1,74,2],[74,3,74,11],[74,12,75,12],[76,3,76,11],[77,1,77,2],[77,3,77,11],[79,3,79,11],[80,1,80,2],[80,3,80,11],[87,1,87,11],[88,2,91,11],[88,12,89,12],[94,8,94,11],[82,3,82,11],[83,1,83,2],[83,3,83,11]]}
[]
[]
[null,null,null,null,null,null,null,null,null,null,null,null,null,null,null,5]
[null,"Consultant Contract #",null,null,null,null,null,null,"FM No(s).:",null,null,null,null,null,null,4.5]
[null,"Project Title:",null,null,null,null,null,null,null,null,null,null,null,null,null,4]
[null,"Prime Consultant Business Name:",null,null,null,null,null,null,null,null,null,null,null,null,null,3.5]
[null,"Sub Consultant Business Name:",null,null,null,null,null,null,null,null,null,null,null,null,null,3]
[null,"Engineer of Record:",null,null,null,null,null,null,null,null,null,null,null,null,null,2.5]
[null,"Design Firm:",null,null,null,null,null,null,null,null,null,null,null,null,null,2]
[null,"Consultant Project Manager:",null,null,null,null,null,null,null,null,null,null,null,null,null,1.5]
[null,"FDOT Project Manager:",null,null,null,null,null,null,null,null,null,null,null,null,null,1]
[null,"FDOT PM Phone No:"]
[]
[]
[]
[]
[]
[]
[]
[null,"This worksheet provides specific performance measure guidelines for the performance rating scale as it pertains to each criteria item in this evaluation area. This worksheet also serves as backup documentation for drafting and discussing the evaluations. The scores and comments must be transferred to the official evaluation within the FDOT Consultant Evaluation (CE) internal application:"]
[]
[null,"https://ce.fdot.gov/"]
[null,"Access to the internal CE application for inputting performance evaluations \nis restricted to FDOT Project Managers."]
[]
[null,"LANDSCAPE ARCHITECT - QUALITY EVALUATION CRITERIA"]
[]
[null,"GENERAL PERFORMANCE RATING SCALE"]
[null,5,"Outstanding Performance",null,null,"   - Consultant consistently exceeded expectations."]
[null,4,"Above Satisfactory Performance",null,null,"   - Consultant consistently met, often exceeded, expectations."]
[null,3,"Satisfactory Performance",null,null,"   - Consultant consistently met expectations."]
[null,2,"Below Satisfactory Performance",null,null,"   - Consultant inconsistently met expectations."]
[null,1,"Unacceptable Performance",null,null,"   - Consultant consistently failed to meet expectations."]
[]
[null,"**{See specific performance measure guidelines within each Evaluation Criteria Section}**"]
[]
[null,null,null,null,null,"TOTAL SCORE FOR ALL QUALITY CRITERIA:",null,null,null,null,null,null,{"$f":"M95","v":"Not Rated"},null,null,null,"Total Items:",8]
[null,null,null,null,null,null,null,null,null,null,null,null,null,null,null,null,"Items graded:",{"$f":"SUM(R62:R85)","v":0}]
[]
[]
[]
[null,"FDOT Project Manager",null,null,null,null,null,null,null,null,null,"Date"]
[]
[]
[null,"General Comments:"]
[]
[]
[]
[]
[]
[]
[]
[null,null,"QUALITY EVALUATION CRITERIA"]
[null,"Instructions:"]
[null,"For each evaluation item below, please rate from 1 to 5 in accordance with the performance rating scale. Ratings in ½ point (0.5) increments between 1 and 5 are permitted. Comments are required for all rating scores less than 3 and greater than 4, but comments are encouraged for all evaluation items rated. All comments must be aggregated in the \"Combined Evaluation Section Comments\" field, regardless of the average score for that section.\n "]
[]
[]
[]
[]
[]
[]
[null,null,"Evaluation Items",null,null,null,null,null,null,null,null,null,"Score"]
[null,null,1,"Contract documents, schedule, and design solutions showed understanding, and complied with\nDepartment policy and design criteria.",null,null,null,null,null,null,null,null,null,null,null,null,null,{"$f":"IF(M62>0,1,0)","v":0}]
[null,"Comments:",null,null,null,null,null,null,null,null,null,null,{"$f":"IF(M62=\"N/A\",\"\",(IF(M62=\"\",\"\",(IF(M62<3,\"COMMENTS REQUIRED\",(IF(M62>4,\"COMMENTS REQUIRED\",\"\")))))))","v":""},null,{"$f":"+IF(M63=\"comments required\", 1,0)","v":0}]
[]
[null,null,2,"Design solutions were integrated with existing and proposed conditions, including adjoining land uses, soils, utilities, IT systems, lighting systems, drainage systems, walls and fences, outdoor advertising, safe operation of the transportation facility, etc.",null,null,null,null,null,null,null,null,null,null,null,null,null,{"$f":"IF(M65>0,1,0)","v":0}]
[null,"Comments:",null,null,null,null,null,null,null,null,null,null,{"$f":"IF(M65=\"N/A\",\"\",(IF(M65=\"\",\"\",(IF(M65<3,\"COMMENTS REQUIRED\",(IF(M65>4,\"COMMENTS REQUIRED\",\"\")))))))","v":""},null,{"$f":"+IF(M66=\"comments required\", 1,0)","v":0}]
[]
[null,null,3,"Design solutions accommodate future plant growth as specified to include desired mature maintained size of all plants, including height, spread, clear trunk, or full foliage.",null,null,null,null,null,null,null,null,null,null,null,null,null,{"$f":"IF(M68>0,1,0)","v":0}]
[null,"Comments:",null,null,null,null,null,null,null,null,null,null,{"$f":"IF(M68=\"N/A\",\"\",(IF(M68=\"\",\"\",(IF(M68<3,\"COMMENTS REQUIRED\",(IF(M68>4,\"COMMENTS REQUIRED\",\"\")))))))","v":""},null,{"$f":"+IF(M69=\"comments required\", 1,0)","v":0}]
[]
[null,null,4,"Design solutions were compatible within the ability and resources of the maintaining agency.",null,null,null,null,null,null,null,null,null,null,null,null,null,{"$f":"IF(M71>0,1,0)","v":0}]
[null,"Comments:",null,null,null,null,null,null,null,null,null,null,{"$f":"IF(M71=\"N/A\",\"\",(IF(M71=\"\",\"\",(IF(M71<3,\"COMMENTS REQUIRED\",(IF(M71>4,\"COMMENTS REQUIRED\",\"\")))))))","v":""},null,{"$f":"+IF(M72=\"comments required\", 1,0)","v":0}]
[]
[null,null,5,"Tabulation of quantities, plant schedules, EQ report, etc. were accurate and complete.",null,null,null,null,null,null,null,null,null,null,null,null,null,{"$f":"IF(M74>0,1,0)","v":0}]
[null,"Comments:",null,null,null,null,null,null,null,null,null,null,{"$f":"IF(M74=\"N/A\",\"\",(IF(M74=\"\",\"\",(IF(M74<3,\"COMMENTS REQUIRED\",(IF(M74>4,\"COMMENTS REQUIRED\",\"\")))))))","v":""},null,{"$f":"+IF(M75=\"comments required\", 1,0)","v":0}]
[]
[null,null,6,"Landscape maintenance and establishment plan was thorough and complete.",null,null,null,null,null,null,null,null,null,null,null,null,null,{"$f":"IF(M77>0,1,0)","v":0}]
[null,"Comments:",null,null,null,null,null,null,null,null,null,null,{"$f":"IF(M77=\"N/A\",\"\",(IF(M77=\"\",\"\",(IF(M77<3,\"COMMENTS REQUIRED\",(IF(M77>4,\"COMMENTS REQUIRED\",\"\")))))))","v":""},null,{"$f":"+IF(M78=\"comments required\", 1,0)","v":0}]
[]
[null,null,7,"Post design services requested by the Department were responded to in a timely fashion.",null,null,null,null,null,null,null,null,null,null,null,null,null,{"$f":"IF(M80>0,1,0)","v":0}]
[null,"Comments:",null,null,null,null,null,null,null,null,null,null,null,null,{"$f":"+IF(M81=\"comments required\", 1,0)","v":0}]
[]
[null,null,8,"Job-site inspections and field observations provided accurately documented compliance or non-compliance with the plans and specifications.",null,null,null,null,null,null,null,null,null,null,null,null,null,{"$f":"IF(M83>0,1,0)","v":0}]
[null,"Comments:",null,null,null,null,null,null,null,null,null,null,null,null,{"$f":"+IF(M84=\"comments required\", 1,0)","v":0}]
[]
[]
[null,null,null,null,null,null,null,null,null,null,null,"Evaluation Section Average Score:",{"$f":"IF((COUNT(M62:M85)=0),\"Not Rated\", AVERAGE(M62:M85))","v":"Not Rated"}]
[null,"Combined Evaluation Section Comments:"]
[null,null,null,null,null,null,null,null,null,null,null,null,{"$f":"IF(M87=\"Not Rated\",\"\",(IF(O89>0,\"COMMENTS REQUIRED\", \"\")))","v":""},null,{"$f":"+SUM(O62:O85)","v":0}]
[]
[]
[]
[]
[]
[null,null,null,null,null,null,null,null,"Total Average Score:",null,null,null,{"$f":"IF((R37=0),\"Not Rated\",AVERAGE(M87))","v":"Not Rated"}]